[Event "31st Kavala Open-A 2022"]
[Site "Kavala"]
[Date "2022.07.27"]
[Round "3.5"]
[White "Karthik Venkataraman"]
[Black "Tarhan, Adar"]
[Result "1/2-1/2"]
[ECO "C78"]
[WhiteElo "2483"]
[BlackElo "2201"]
[Annotator "TA"]
[PlyCount "162"]
[EventDate "2022.07.27"]
[EventType "swiss"]
[EventCountry "GRE"]
[SourceTitle "playchess.com"]
[Source "ChessBase"]
[SourceQuality "1"]
[TimeControl "40/5400+30:1800+30"]

{[%evp 15,162,14,16,21,31,2,0,0,0,2,12,6,12,5,12,8,2,-18,-14,-48,-55,-37,27,0,0,0,59,49,49,52,50,47,43,45,90,87,87,89,89,87,95,93,87,89,98,85,85,97,89,91,122,89,82,24,24,24,31,31,31,8,8,8,8,8,8,8,8,8,8,8,8,8,8,8,8,8,8,8,8,8,8,8,8,8,8,0,8,0,8,0,8,8,8,8,8,8,8,8,8,8,8,8,14,8,151,8,8,8,8,0,8,8,8,8,8,8,8,8,8,8,8,8,8,8,8,8,8,8,10,10,10,10,10,10,10,10,17,0,17,0,32,32,32,8,8,8,8,8,8]} 1. e4 {[%emt 0:06:21]} e5 {[%emt 0:00:07]} 2. Nf3 {[%emt 0:00:18]} Nc6 {[%emt 0:00:10]} 3. Bb5 {[%emt 0:00:05]} a6 {[%emt 0:00:04]} 4. Ba4 {[%emt 0:00:05]} Nf6 {[%emt 0:00:05]} 5. O-O {[%emt 0:00:04]} b5 {[%emt 0:00:07]} 6. Bb3 {[%emt 0:00:03]} Bb7 {[%emt 0:00:06]} 7. d3 {[%emt 0:00:17]} Bc5 {[%emt 0:00:15]} 8. Nc3 {[%emt 0:05:31]} d6 {[%emt 0:00:30]} 9. a3 {[%emt 0:02:15] C78: Ruy Lopez: Archangelsk and Möller Defences.} h6 {[%emt 0:01:14]} 10. Be3 {[%emt 0:01:25]} Nd4 {[%emt 0:07:08]} 11. Bxd4 {[%emt 0:00:48]} Bxd4 {[%emt 0:00:05]} 12. Nxd4 {[%emt 0:00:10]} exd4 {[%emt 0:00:03]} 13. Ne2 {[%emt 0:00:06]} c5 {[%emt 0:00:05]} 14. Ng3 {[%emt 0:01:28] [#]} O-O $146 {[%emt 0:06:21]} ({Predecessor:} 14... Qc7 15. c3 dxc3 16. bxc3 O-O 17. Qf3 Rae8 18. c4 Re5 19. Qd1 bxc4 20. Bxc4 d5 21. exd5 Nxd5 {1-0 (52) Sardy,P (2350)-Nemeth,A (2011) Hungary 2012}) 15. Qf3 {[%emt 0:00:27]} Bc8 {[%emt 0:10:18]} 16. e5 {[%emt 0:05:58]} Bg4 {[%emt 0:00:20]} 17. Qc6 {[%emt 0:00:09]} dxe5 {[%emt 0:00:45]} 18. Qxc5 {[%emt 0:00:05]} Nd7 {[%emt 0:00:38]} ({Black should try} 18... Re8 $1 $15) 19. Qd6 {[%emt 0:03:39]} Re8 {[%emt 0:02:18]} 20. a4 {[%emt 0:01:06] axb5 is the strong threat.} ({But not} 20. Qg6 Be6 21. Bxe6 Rxe6 $15) 20... Nb6 {[%emt 0:06:32]} (20... Rb8 $11) 21. Qxd8 $1 $14 {[%emt 0:01:27]} ({Much worse is} 21. Qg6 $6 Be6 22. Bxe6 Rxe6 $15) 21... Rexd8 {[%emt 0:00:19]} 22. axb5 $1 {[%emt 0:01:21]} axb5 {[%emt 0:00:04]} 23. Rxa8 $1 {[%emt 0:01:06]} Rxa8 {[%emt 0:00:05]} 24. f4 {[%emt 0:00:13]} exf4 {[%emt 0:04:57] [#]} 25. Bxf7+ $1 {[%emt 0:02:43][%mdl 64] Decoy} Kxf7 {[%emt 0:00:06]} 26. Rxf4+ {[%emt 0:00:03]} Kg8 {[%emt 0:00:10] aiming for ...Bd1.} 27. Rxg4 $16 {[%emt 0:00:05][%mdl 4096] Endgame And now Nf5 would win. KRN-KRN} Ra1+ {[%emt 0:00:10]} 28. Kf2 {[%emt 0:00:51] Black must now prevent Nf5.} Rc1 {[%emt 0:00:25]} 29. Nf5 {[%emt 0:13:03]} Rxc2+ {[%emt 0:00:09]} 30. Kf3 {[%emt 0:00:05]} Rxb2 {[%emt 0:01:35]} 31. Rxg7+ {[%emt 0:00:06]} Kf8 {[%emt 0:00:06]} 32. Rb7 {[%emt 0:08:21]} Na4 {[%emt 0:02:25]} 33. Rb8+ {[%emt 0:13:33]} Kf7 {[%emt 0:00:04]} 34. Rxb5 {[%emt 0:05:49]} Rxb5 $11 {[%emt 0:00:11]} 35. Nd6+ {[%emt 0:00:05]} Ke6 {[%emt 0:00:11]} 36. Nxb5 $14 {[%emt 0:00:03] KN-KN} Ke5 {[%emt 0:00:17]} 37. Na3 {[%emt 0:01:07] Black should prevent Nc4+.} Nc5 $1 {[%emt 0:00:13]} 38. Nc4+ {[%emt 0:00:13]} Kf5 {[%emt 0:05:44]} 39. Nb2 {[%emt 0:05:04]} Kg5 {[%emt 0:10:20]} 40. Ke2 {[%emt 0:00:00]} Ne6 {[%emt 0:00:00]} 41. Kf2 {[%emt 0:01:31]} Kf5 {[%emt 0:02:01]} 42. Na4 {[%emt 0:01:17]} Kf4 {[%emt 0:03:55]} 43. Nb6 {[%emt 0:00:44]} h5 {[%emt 0:02:47]} 44. Nd5+ {[%emt 0:02:24]} Ke5 {[%emt 0:00:10]} 45. Nb4 {[%emt 0:00:05] Hoping for Kg3.} Kf4 {[%emt 0:05:24]} 46. Nc6 {[%emt 0:00:54]} h4 {[%emt 0:02:27]} 47. Nb4 {[%emt 0:00:24]} Kf5 {[%emt 0:01:06]} 48. Nc2 {[%emt 0:00:20]} Kf4 {[%emt 0:00:08]} 49. Ne1 {[%emt 0:00:16]} Ng5 {[%emt 0:00:13]} 50. Nc2 {[%emt 0:03:09]} Ne6 {[%emt 0:00:14]} 51. Nb4 {[%emt 0:02:05]} Kf5 {[%emt 0:00:37]} 52. Nc6 {[%emt 0:01:11]} Kf4 {[%emt 0:00:34]} 53. Ne7 {[%emt 0:00:05]} Nc5 {[%emt 0:01:50]} 54. Ke2 {[%emt 0:00:08]} Ne6 {[%emt 0:00:08]} 55. Ng6+ {[%emt 0:03:13]} Kg5 {[%emt 0:01:12]} 56. Ne5 {[%emt 0:00:06]} Kf5 {[%emt 0:00:40]} 57. Nf3 {[%emt 0:02:43]} Kg4 {[%emt 0:06:05]} 58. Kf2 {[%emt 0:00:54]} Nf4 {[%emt 0:00:21]} 59. h3+ {[%emt 0:01:12]} Kh5 {[%emt 0:00:11] [#]} 60. Nxd4 {[%emt 0:02:23]} (60. Nxh4 $1 $16 {[%mdl 512]} Kxh4 (60... Nxd3+ 61. Kg3) 61. g3+ Kxh3 62. gxf4) 60... Nxd3+ $11 {[%emt 0:00:09]} 61. Ke3 {[%emt 0:00:37]} (61. Kf3 $5 {[%cal Rd4e6]}) 61... Ne1 {[%emt 0:03:28]} 62. Kf2 {[%emt 0:00:45]} Nd3+ {[%emt 0:00:07]} 63. Ke2 {[%emt 0:00:02]} Nf4+ $1 {[%emt 0:00:32]} 64. Kf3 {[%emt 0:00:06]} Kg5 {[%emt 0:00:12]} 65. Nb3 {[%emt 0:00:24]} Ne6 {[%emt 0:00:25]} 66. Nd2 {[%emt 0:00:05]} Kf5 {[%emt 0:00:04]} 67. Kf2 {[%emt 0:00:13] Strongly threatening Nf3.} Nf4 {[%emt 0:01:31]} 68. Nf3 {[%emt 0:00:08]} Ng6 {[%emt 0:00:11]} 69. Ke3 {[%emt 0:00:07]} Ke6 {[%emt 0:00:32]} 70. Ke4 {[%emt 0:00:10]} Kf6 $1 {[%emt 0:00:03]} 71. Nd4 {[%emt 0:00:05]} Kg5 {[%emt 0:00:38]} 72. Ne6+ {[%emt 0:00:05]} Kf6 {[%emt 0:00:09]} 73. Nf4 {[%emt 0:00:04] Nxg6 would kill now.} Ne7 {[%emt 0:01:02]} 74. Nd3 {[%emt 0:00:33]} (74. Kf3 $5 {[%cal Rf3g4]} Kf5 75. Ke3 $16) 74... Ng6 {[%emt 0:00:05]} 75. Ne1 {[%emt 0:00:51]} Kg5 {[%emt 0:00:18]} 76. Nf3+ {[%emt 0:00:07]} Kf6 {[%emt 0:00:04]} 77. Nd4 {[%emt 0:00:11]} Kg5 {[%emt 0:00:11]} 78. Nf5 {[%emt 0:00:08]} Nf4 {[%emt 0:01:04]} 79. Nxh4 {[%emt 0:00:35]} Nxh3 $1 {[%emt 0:00:05] The position is equal.} 80. Nf3+ {[%emt 0:00:03]} Kg4 {[%emt 0:00:05]} 81. Ne5+ {[%emt 0:00:06]} Kg3 {[%emt 0:00:04] Weighted Error Value: White=0.09 (flawless) /Black=0.06 (flawless)} 1/2-1/2

[Event "31st Kavala Open-A 2022"]
[Site "Kavala"]
[Date "2022.07.27"]
[Round "3.6"]
[White "Rahmanidis, Petros"]
[Black "Kilic, Eray"]
[Result "0-1"]
[ECO "B96"]
[WhiteElo "2191"]
[BlackElo "2422"]
[Annotator "TA"]
[PlyCount "78"]
[EventDate "2022.07.27"]
[EventType "swiss"]
[EventCountry "GRE"]
[SourceTitle "playchess.com"]
[Source "ChessBase"]
[SourceQuality "1"]
[TimeControl "40/5400+30:1800+30"]

{[%evp 16,78,2,13,8,9,16,0,0,3,20,-5,39,0,0,0,0,0,10,-11,12,11,48,21,28,14,6,16,141,83,73,0,0,-24,-28,-50,-37,-37,-23,-26,-12,-12,-12,-113,-107,-204,-188,-293,-200,-885,-857,-874,-859,-833,-824,-698,-690,-1168,-754,-29984,-29985,-10797,-5814,-1325,-1032]} 1. e4 {[%emt 0:00:51]} c5 {[%emt 0:00:04]} 2. Nf3 {[%emt 0:00:21]} d6 {[%emt 0:00:13]} 3. d4 {[%emt 0:00:25]} cxd4 {[%emt 0:00:00]} 4. Nxd4 {[%emt 0:00:05]} Nf6 {[%emt 0:00:00]} 5. Nc3 {[%emt 0:00:13]} a6 {[%emt 0:00:04]} 6. Bg5 {[%emt 0:01:05]} e6 {[%emt 0:00:58]} 7. f4 {[%emt 0:00:40]} h6 {[%emt 0:00:09]} 8. Bh4 {[%emt 0:01:00]} Qb6 {[%emt 0:00:16]} 9. a3 {[%emt 0:02:12]} Be7 {[%emt 0:00:17][%cal Of6e4] B96: Sicilian Najdorf: 6 Bg5 e6 7 f4, lines other than 7...Qb6 and 7...Be7.} (9... Qxb2 $2 10. Na4 Qxa1 11. Qxa1 $18) 10. Bf2 {[%emt 0:01:09][%cal Od4e6] Hoping for Nxe6!} Qc7 $1 {[%emt 0:00:06]} (10... Qxb2 $2 11. Na4 Qxa1 12. Qxa1 $18) 11. Qf3 {[%emt 0:00:43]} Nbd7 {[%emt 0:00:34] The position is equal.} 12. O-O-O {[%emt 0:01:48]} b5 {[%emt 0:00:31]} 13. g4 {[%emt 0:01:19]} Bb7 {[%emt 0:00:10]} (13... g5 $5 {[%cal Rg5f4]}) 14. Kb1 {[%emt 0:01:46] 14.h4 gains popularity.} Nc5 {[%emt 0:05:42][%cal Rc5e4]} 15. Bd3 {[%emt 0:01:15]} d5 {[%emt 0:00:44][%cal Rd5e4]} 16. e5 {[%emt 0:00:51]} Nfe4 {[%emt 0:00:29] [#]} 17. Nce2 $146 {[%emt 0:01:16]} ({Don't blunder} 17. Ndxb5 $2 axb5 18. Bxb5+ Bc6 19. Bxc5 Nxc5 $19) ({Predecessor:} 17. Be1 O-O-O 18. Qe3 g5 19. f5 f6 20. Bxe4 dxe4 21. exf6 Bxf6 22. Bg3 Be5 23. Bxe5 Qxe5 24. Rhf1 exf5 25. Rxf5 Qe7 26. b4 Nd7 27. Ncxb5 axb5 28. Qc3+ {1-0 (28) Tsydypov,Z (2546)-Rodshtein,M (2699) Sochi 2019}) 17... Nxf2 {[%emt 0:15:50]} (17... b4 $5) 18. Qxf2 {[%emt 0:00:09]} Ne4 {[%emt 0:01:19]} 19. Bxe4 {[%emt 0:23:26]} (19. Qf3 {is interesting.} O-O-O 20. Ng3 Bc5 21. Qe3) 19... dxe4 {[%emt 0:00:02]} 20. Qg3 {[%emt 0:00:07]} Qb6 {[%emt 0:31:07]} 21. f5 {[%emt 0:05:27]} Bc5 {[%emt 0:02:25]} (21... O-O-O $1 $11 {keeps the balance.}) 22. Rhf1 {[%emt 0:05:30]} (22. fxe6 $142 $1 fxe6 23. Rhf1) 22... O-O-O $16 {[%emt 0:10:37][%cal Rc5d4,Ba8d8,Bd8d7,Bd7f7,Bf7f1][%mdl 32] [#]} 23. c3 {[%emt 0:04:17]} (23. fxe6 $1 $16 fxe6 24. Qc3) 23... Bd5 $11 {[%emt 0:08:27]} 24. b4 {[%emt 0:07:49]} Bxd4 {[%emt 0:02:12]} 25. Nxd4 {[%emt 0:00:03]} Qc7 {[%emt 0:02:07]} 26. Kb2 {[%emt 0:05:07]} Qc4 {[%emt 0:02:46] Threatens to win with ...h5.} 27. Ra1 {[%emt 0:00:04]} Rd7 $36 {[%emt 0:03:52][%mdl 2048] Black is pushing.} 28. Qe3 {[%emt 0:08:42]} Kb7 {[%emt 0:04:19]} 29. Rfd1 {[%emt 0:11:31] [#]} (29. Rf2 $11) 29... h5 $1 $17 {[%emt 0:08:08]} 30. fxe6 {[%emt 0:05:45]} (30. g5 $17 {was necessary.}) 30... fxe6 $19 {[%emt 0:00:02]} 31. g5 {[%emt 0:00:01]} (31. gxh5 $142 Rxh5 32. a4) 31... Rf8 {[%emt 0:00:37]} 32. Rd2 $2 {[%emt 0:03:12]} (32. g6) 32... Rdf7 {[%emt 0:00:36][%cal Of7f3] ...Rf3! is the strong threat.} 33. Qe2 {[%emt 0:02:58]} e3 {[%emt 0:01:13]} 34. Qxc4 {[%emt 0:02:35]} Bxc4 {[%emt 0:00:04][%cal Bd5c4,Bc4d3,Bd3c2,Bc2d3][%mdl 32]} (34... bxc4 $2 {is the wrong capture.} 35. Re2 $19) 35. Rc2 {[%emt 0:00:12]} Rf1 {[%emt 0:01:08]} 36. h4 {[%emt 0:03:42]} Bd3 {[%emt 0:00:39] And now ...Rxa1 would win.} 37. Rcc1 {[%emt 0:00:50]} R8f2+ {[%emt 0:00:21]} 38. Nc2 {[%emt 0:00:10] [#]} Bxc2 $1 {[%emt 0:00:11]} 39. Rxf1 {[%emt 0:00:25]} Bd3+ {[%emt 0:00:01][%mdl 64] Discovered Attack.  Weighted Error Value: White=0.79/Black=0.17 (very precise)} 0-1

[Event "31st Kavala Open-A 2022"]
[Site "Kavala"]
[Date "2022.07.27"]
[Round "3.7"]
[White "Gagare, Shardul"]
[Black "Markidis, Konstantinos"]
[Result "1/2-1/2"]
[ECO "C07"]
[WhiteElo "2514"]
[BlackElo "2259"]
[Annotator "TA"]
[PlyCount "151"]
[EventDate "2022.07.27"]
[EventType "swiss"]
[EventCountry "GRE"]
[SourceTitle "playchess.com"]
[Source "ChessBase"]
[SourceQuality "1"]
[TimeControl "40/5400+30:1800+30"]

{[%evp 11,151,12,12,21,6,8,6,1,44,42,62,71,72,20,23,0,68,78,72,75,92,102,76,77,100,91,150,147,129,120,103,133,129,78,86,85,94,116,109,56,182,165,166,109,146,90,79,89,89,86,82,81,113,104,110,95,125,119,156,123,125,110,113,118,114,93,121,114,167,0,12,0,171,171,182,182,182,182,182,182,182,182,182,182,182,174,182,175,170,155,167,150,182,182,196,182,202,196,196,182,182,145,182,145,145,152,154,59,64,11,8,0,1,0,0,0,0,0,0,0,0,0,0,0,0,-8,0,0,0,-8,0,0,0,0,0,0,0,0,0,0,11,14]} 1. e4 {[%emt 0:00:03]} e6 {[%emt 0:03:45]} 2. d4 {[%emt 0:00:07]} d5 {[%emt 0:00:08]} 3. Nd2 {[%emt 0:00:05]} c5 {[%emt 0:01:03]} 4. Ngf3 {[%emt 0:00:48][%cal Bg1f3,Bf3d4,Bd4b5,Bb5c3][%mdl 32]} cxd4 {[%emt 0:00:45]} 5. Nxd4 {[%emt 0:00:38]} Nf6 {[%emt 0:01:06]} 6. exd5 {[%emt 0:00:12]} Qxd5 {[%emt 0:00:40] 6...Nxd5 is the fancy move.} 7. Nb5 {[%emt 0:00:30] C07: French Tarrasch: 3...c5, 4 Ngf3 and 4 exd5 Qxd5.} Na6 {[%emt 0:00:30] Against Nc7+} 8. Nc3 {[%emt 0:00:40]} Qd6 {[%emt 0:01:08]} 9. a3 {[%emt 0:02:22]} Be7 {[%emt 0:00:49]} 10. Qf3 {[%emt 0:06:29]} O-O {[%emt 0:05:15]} 11. Nc4 {[%emt 0:01:01]} Qd8 {[%emt 0:10:55] [#]} 12. Be2 $146 {[%emt 0:19:22]} (12. Bf4 $16) ({Predecessor:} 12. Bf4 Nc7 13. Bd3 Ncd5 14. Be5 Nd7 15. Bd4 Nxc3 16. Bxc3 Nc5 17. O-O-O Nxd3+ 18. Rxd3 {1-0 (40) Popov,I (2592)-Christiansen,J (2555) St Petersburg 2018}) 12... Nc7 $11 {[%emt 0:04:10]} 13. Qg3 {[%emt 0:14:47]} Kh8 {[%emt 0:09:43]} (13... Nfd5 $11) 14. Bf4 $14 {[%emt 0:04:38]} Ncd5 {[%emt 0:00:57]} 15. Rd1 {[%emt 0:00:26]} Bd7 {[%emt 0:03:58][%cal Bc8d7,Bd7c6,Bc6d5][%mdl 32]} 16. Be5 $1 {[%emt 0:01:10]} Bc6 {[%emt 0:01:46]} 17. Nxd5 {[%emt 0:08:10]} Bxd5 {[%emt 0:09:55]} 18. Ne3 $40 {[%emt 0:01:53][%mdl 128] Strongly threatening c4. White wants a kill. 0x0.001f244a0a95dp-1022s more active pieces.} Qa5+ {[%emt 0:09:19]} (18... Qc8 $142) 19. Bc3 $16 {[%emt 0:01:26]} Qd8 {[%emt 0:05:07]} 20. Bxf6 {[%emt 0:05:53]} Bxf6 {[%emt 0:06:11]} 21. c4 $1 {[%emt 0:03:39]} Qa5+ {[%emt 0:01:04]} 22. b4 {[%emt 0:00:14]} Qxa3 {[%emt 0:00:24]} 23. cxd5 {[%emt 0:00:18] aiming for 0-0.} Qxb4+ {[%emt 0:00:13]} 24. Kf1 {[%emt 0:00:08]} a5 {[%emt 0:04:30]} 25. Bd3 {[%emt 0:19:01]} (25. dxe6 $16 fxe6 26. Qg4) 25... exd5 {[%emt 0:07:22]} (25... a4 $1 $14) 26. Nxd5 {[%emt 0:01:07]} Qb3 {[%emt 0:00:21][%cal Rb3d1]} 27. Qf3 {[%emt 0:01:03]} (27. Be2 $18 Qb2 28. Nxf6 Qxf6 29. Qa3) 27... Bb2 {[%emt 0:00:26]} 28. Bb1 {[%emt 0:05:52]} (28. Qh5 h6 $16) (28. g3 $142) 28... Qxf3 {[%emt 0:00:34]} 29. gxf3 {[%emt 0:00:01]} a4 {[%emt 0:00:22]} 30. Rd2 {[%emt 0:01:31]} a3 {[%emt 0:00:15]} 31. Ba2 {[%emt 0:00:17]} Ra6 {[%emt 0:01:36]} 32. f4 {[%emt 0:01:10]} b5 {[%emt 0:00:59]} 33. Ke2 {[%emt 0:00:59]} Re6+ {[%emt 0:00:53]} 34. Ne3 {[%emt 0:00:36]} Re7 {[%emt 0:01:07]} 35. Kf3 {[%emt 0:01:38]} b4 {[%emt 0:00:50]} 36. Rb1 {[%emt 0:00:00]} Rb7 37. Rd3 {[%emt 0:00:00]} Rfb8 38. Rb3 {[%emt 0:01:58]} g6 {[%emt 0:00:12]} 39. Nc4 $1 {[%emt 0:00:00]} Bd4 {[#]} (39... Bf6 $16 {keeps fighting.}) 40. Nd6 $2 {[%emt 0:00:00]} ({White should play} 40. Nxa3 $1 $18 {[%mdl 512] Hoping for Nc2.} Ra7 (40... Ra8 41. Nc2) 41. Nc2) 40... Rd7 $11 41. Nc4 {[%emt 0:09:37]} (41. Ne4 $11) 41... Rdb7 $18 {[#]} 42. Nxa3 $1 {[%emt 0:01:59][%mdl 512]} Ra7 {[#]} (42... Ra8 43. Nc2) 43. Rd3 $1 {[%emt 0:02:21]} b3 {[%cal Oh8g7] [#]} 44. Nc2 $1 {[%emt 0:06:01]} ({And not} 44. Rxd4 Rxa3 45. Rd3 Rxa2 46. Rdxb3 Rxb3+ 47. Rxb3 Ra5 $15) (44. Rdxb3 Rxb3+ 45. Rxb3 Bc5 $11) (44. Bxb3 Rxa3 45. Rxd4 Rbxb3+ 46. Rxb3 Rxb3+ 47. Kg2 Kg7 $11) (44. Rbxb3 Rxb3 45. Rxb3 Bc5 $11) 44... Bxf2 {[%emt 0:22:33]} 45. Rdxb3 {[%emt 0:00:00]} ({Not} 45. Kxf2 Rxa2 46. Rbxb3 Rxb3 47. Rxb3 Rxc2+ 48. Kg3 Kg7 $17) ({Don't play} 45. Rbxb3 Rc8 46. Bb1 Bg1) 45... Rxb3+ {[%emt 0:00:27]} 46. Bxb3 {[%emt 0:00:00]} Bc5 {[%emt 0:00:10]} 47. Rd1 {[%emt 0:00:27]} Kg7 {[%emt 0:00:36]} 48. Rd5 {[%emt 0:02:15]} Rc7 {[%emt 0:01:20]} 49. Ne1 {[%emt 0:00:16]} Bg1 {[%emt 0:04:27]} 50. Kg2 {[%emt 0:05:00]} Be3 {[%emt 0:01:21]} 51. Nd3 {[%emt 0:00:27]} f5 {[%emt 0:00:50]} 52. Kf3 {[%emt 0:01:16]} Bd2 {[%emt 0:03:24]} 53. Rd8 {[%emt 0:03:10]} Re7 {[%emt 0:01:10]} 54. Ne5 {[%emt 0:00:35]} Bc3 {[%emt 0:00:55]} 55. Rg8+ {[%emt 0:00:20]} Kf6 {[%emt 0:00:44]} 56. Nc6 {[%emt 0:03:31]} Rd7 {[%emt 0:01:22]} 57. Re8 {[%emt 0:00:59]} Rd3+ {[%emt 0:00:37]} 58. Ke2 {[%emt 0:00:22]} Rd2+ {[%emt 0:00:44] [#]} 59. Ke3 {[%emt 0:00:33]} (59. Kf1 $1 $16 {Re7 is the strong threat.} Rb2 60. Bc4) 59... Rxh2 $14 {[%emt 0:01:00]} 60. Ne5 {[%emt 0:00:35]} (60. Rf8+ $14 Kg7 61. Rf7+ Kh8 62. Nd8) 60... Bd2+ $1 $11 {[%emt 0:00:42] The position is equal.} 61. Kd4 {[%emt 0:00:10] And now Re6+ would win.} Bxf4 {[%emt 0:00:59]} 62. Re6+ {[%emt 0:00:50]} Kg7 {[%emt 0:00:35]} 63. Re7+ {[%emt 0:00:06]} Kh6 {[%emt 0:01:40]} 64. Nf7+ {[%emt 0:00:12]} Kh5 {[%emt 0:00:32]} 65. Bd5 {[%emt 0:01:13]} Kg4 {[%emt 0:01:43]} 66. Re1 {[%emt 0:00:30]} Rd2+ {[%emt 0:03:30]} 67. Kc4 {[%emt 0:00:00]} Rc2+ {[%emt 0:00:33]} 68. Kb3 {[%emt 0:00:35]} Rc5 {[%emt 0:00:13]} 69. Rg1+ {[%emt 0:00:09]} Kh3 {[%emt 0:00:20]} 70. Bc4 {[%emt 0:00:32]} Rc7 {[%emt 0:01:20]} 71. Rh1+ {[%emt 0:00:08]} Bh2 {[%emt 0:00:32]} 72. Ng5+ {[%emt 0:00:15]} Kg3 {[%emt 0:00:14]} 73. Rd1 {[%emt 0:01:50]} Kg4 {[%emt 0:00:23]} 74. Ne6 {[%emt 0:00:04]} Rb7+ {[%emt 0:00:09]} 75. Kc2 {[%emt 0:00:11]} f4 {[%emt 0:00:27]} 76. Be2+ {[%emt 0:00:17] Black escapes into a draw.  Weighted Error Value: White=0.18 (very precise) /Black=0.13 (very precise)} 1/2-1/2

[Event "31st Kavala Open-A 2022"]
[Site "Kavala"]
[Date "2022.07.27"]
[Round "3.8"]
[White "Vafiadis, Kleanthis"]
[Black "Beerdsen, Thomas"]
[Result "1/2-1/2"]
[ECO "E10"]
[WhiteElo "2286"]
[BlackElo "2500"]
[Annotator "TA"]
[PlyCount "62"]
[EventDate "2022.07.27"]
[EventType "swiss"]
[EventCountry "GRE"]
[SourceTitle "playchess.com"]
[Source "ChessBase"]
[SourceQuality "1"]
[TimeControl "40/5400+30:1800+30"]

{[%evp 9,62,18,20,31,2,14,41,46,59,38,44,31,75,67,59,64,73,70,74,63,65,17,70,70,120,63,116,121,110,110,107,93,112,102,109,91,92,85,87,77,91,88,87,18,22,29,125,116,101,0,0,0,93,0,0]} 1. d4 {[%emt 0:01:22][%cal Bd2d4,Bd4d5][%mdl 32]} Nf6 {[%emt 0:00:35]} 2. c4 {[%emt 0:00:43]} e6 {[%emt 0:00:07]} 3. Nf3 {[%emt 0:00:40]} c5 {[%emt 0:00:11]} 4. d5 {[%emt 0:00:07]} b5 {[%emt 0:00:06]} 5. e4 {[%emt 0:00:35]} Nxe4 {[%emt 0:02:18]} 6. Bd3 {[%emt 0:00:12] E10: Blumenfeld Gambit.} Nf6 {[%emt 0:05:18]} 7. Nc3 {[%emt 0:00:28] is cutting edge theory.} d6 {[%emt 0:14:54]} 8. dxe6 {[%emt 0:10:00] White is slightly better.} Bxe6 {[%emt 0:01:26]} 9. Nxb5 {[%emt 0:01:46]} Be7 {[%emt 0:01:08]} 10. O-O {[%emt 0:07:48] [#]} a6 $146 {[%emt 0:02:19]} ({Predecessor:} 10... O-O 11. Re1 Nc6 12. Bf4 a6 13. Nc3 Nb4 14. Ng5 Qd7 15. Nxe6 fxe6 16. Rc1 Rf7 {1-0 (53) Jefferson,N (2278)-Bruce,R (2100) ICCF email 2020}) 11. Nc3 {[%emt 0:00:08] White is more active.} h6 {[%emt 0:01:11]} 12. b3 {[%emt 0:06:10]} Nc6 {[%emt 0:02:22]} 13. Bb2 {[%emt 0:03:29]} O-O {[%emt 0:02:13]} 14. Re1 {[%emt 0:16:00]} Re8 {[%emt 0:03:59]} 15. h3 {[%emt 0:01:50]} (15. Rc1 $14 {feels stronger.}) 15... Rb8 {[%emt 0:06:45]} (15... d5 $11) 16. Rc1 $14 {[%emt 0:00:56]} Qc7 {[%emt 0:04:38]} (16... Qd7 $14) 17. Ne4 {[%emt 0:08:16]} (17. Bb1 $16) 17... Ne5 {[%emt 0:01:53]} (17... Nd7 $14) 18. Nxe5 $16 {[%emt 0:01:26]} dxe5 {[%emt 0:00:10]} 19. Ng3 {[%emt 0:05:27]} Bd6 {[%emt 0:04:12]} 20. Qe2 {[%emt 0:02:54]} Rbd8 {[%emt 0:01:59]} 21. Rcd1 {[%emt 0:03:59]} Bc8 {[%emt 0:02:13][%cal Oe5e4]} 22. Bf5 {[%emt 0:05:18] Prevents e4.} Bb7 {[%emt 0:05:35]} 23. Ne4 {[%emt 0:00:49]} Bxe4 {[%emt 0:02:42]} 24. Bxe4 {[%emt 0:02:32]} Bf8 {[%emt 0:01:06]} 25. Rxd8 {[%emt 0:01:43]} Qxd8 {[%emt 0:00:11]} 26. f4 {[%emt 0:07:36]} ({Better is} 26. Rd1 $16 Bd6 27. Bc2 (27. Bc6 Re6 $16)) 26... Nxe4 $11 {[%emt 0:04:22]} ({Don't do} 26... exf4 27. Bxf6 Qxf6 {[#]} 28. Bh7+ $1 {[%mdl 512]} Kxh7 29. Qxe8 $16) 27. Qxe4 {[%emt 0:00:05]} Qd2 {[%emt 0:00:23]} (27... Qa5 $1 $11 {keeps the balance.}) 28. Re2 $16 {[%emt 0:02:36]} ({Much weaker is} 28. Bxe5 $6 Re7 $11) 28... Qd1+ {[%emt 0:00:15]} 29. Re1 {[%emt 0:00:01]} (29. Kf2 $16) 29... Qd2 $11 {[%emt 0:00:20][%csl LRb2,LRf4]} 30. Re2 {[%emt 0:01:51]} ({White should try} 30. Bxe5 $11 Re7 31. Re2 Qd1+ 32. Re1) 30... Qd1+ $16 {[%emt 0:00:15]} 31. Re1 {[%emt 0:00:15]} (31. Kf2 $16) 31... Qd2 {[%emt 0:00:07][%csl LRb2,LRf4] Weighted Error Value: White=0.19 (very precise) /Black=0.21 (precise)} 1/2-1/2